bitfinex/quotes_ETHUSD_20250420
["timestamp","ask_amount","ask_price","bid_price","bid_amount"]
[1745109129491,6.06999999,1607.8,1607.6,3.0]
[1745109129895,12.28972833,1607.8,1607.6,3.0]
[1745109130298,18.5097195,1607.8,1607.6,3.0]
[1745109130537,20.43877145,1607.8,1607.6,3.0]
[1745109131193,14.21878028,1607.8,1607.6,3.0]
[1745109131401,20.43878773,1607.8,1607.6,3.0]
[1745109131567,6.22006593,1607.7,1607.6,3.0]
[1745109134399,11.67560038,1607.8,1607.6,9.22045284]
[1745109134901,17.89529292,1607.8,1607.6,3.0]
[1745109140109,24.11526882,1607.8,1607.6,3.0]
[1745109140406,17.89529292,1607.8,1607.6,3.0]
[1745109140789,17.89529292,1607.8,1607.5,5.67090611]
[1745109141812,17.89529292,1607.8,1607.5,11.89170935]
[1745109143306,13.99033707,1607.8,1607.5,11.89170935]
[1745109144619,13.99033707,1607.8,1607.5,11.89155678]
[1745109144620,7.77064453,1607.8,1607.5,11.89155678]
[1745109144906,13.99058537,1607.8,1607.5,5.67090611]
[1745109145075,13.99058537,1607.8,1607.5,11.8916745]
[1745109145278,1.70064454,1607.6,1607.2,0.7659]
[1745109145532,6.22126433,1607.4,1607.2,5.201]
[1745109145803,14.14348681,1607.4,1607.2,5.201]
[1745109146009,6.22161388,1607.3,1607.2,5.201]
[1745109146211,7.02631388,1607.3,1607.2,5.201]
[1745109146406,6.22200099,1607.2,1607.1,0.1]
[1745109147706,13.09631387,1607.3,1607.1,0.1]
[1745109147882,6.06999999,1607.3,1607.1,0.1]
[1745109148685,12.2916356,1607.3,1607.1,0.1]
[1745109150315,6.22200099,1607.2,1607.1,0.1]
[1745109151023,18.5135941,1607.3,1607.1,0.1]
[1745109151204,14.59218525,1607.3,1607.1,0.1]
[1745109151403,6.06999999,1607.2,1607.1,0.1]
[1745109151804,12.29200098,1607.2,1607.1,0.1]
[1745109152011,13.05460098,1607.2,1607.1,0.1]
[1745109156422,6.06999999,1607.2,1607.1,0.1]
[1745109162705,6.06999999,1607.2,1607.1,0.8588]
[1745109163900,6.06999999,1607.2,1607.1,0.1]
[1745109164429,6.06999999,1607.2,1607.1,7.08118815]
[1745109164623,6.06999999,1607.2,1607.1,10.08118815]
[1745109164811,6.06999999,1607.5,1607.4,6.22122682]
[1745109165326,6.06999999,1607.5,1607.4,11.40122682]
[1745109165508,6.06999999,1607.5,1607.4,11.8631683]
[1745109165825,6.06999999,1607.5,1607.4,11.40122682]
[1745109166013,6.06999999,1607.5,1607.4,14.40122682]
[1745109166217,6.06999999,1607.5,1607.4,15.18482682]
[1745109168931,12.28969605,1607.8,1607.5,9.22077105]
[1745109171935,18.50966221,1607.8,1607.5,3.0]
[1745109172115,12.28969605,1607.8,1607.5,3.0]
[1745109173033,12.28969605,1607.8,1607.5,9.22081824]
[1745109173206,13.99028715,1607.8,1607.5,9.22081824]
[1745109174541,13.99028715,1607.8,1607.5,3.0]
[1745109174831,0.8076,1607.7,1607.4,5.18]
[1745109175035,7.9214017,1607.6,1607.4,5.18]
[1745109175399,13.24821426,1607.7,1607.4,5.18]
[1745109175615,7.027878,1607.7,1607.4,5.18]
[1745109176016,7.027878,1607.7,1607.4,11.40122533]
[1745109176538,6.220278,1607.7,1607.4,12.20892533]
[1745109177548,8.52179109,1607.8,1607.4,12.2086844]
[1745109177721,13.99034133,1607.8,1607.5,6.22071663]
[1745109182251,6.06999999,1607.9,1607.6,3.7912]
[1745109182413,6.06999999,1608.0,1607.9,0.7912]
[1745109182622,6.06999999,1608.1,1607.9,12.18845213]
[1745109182815,6.06999999,1608.1,1607.9,12.18827699]
[1745109183021,6.06999999,1608.1,1608.0,6.21890547]
[1745109186549,6.06999999,1608.3,1608.0,6.21890547]
[1745109187342,12.28775873,1608.3,1607.9,12.18823769]
[1745109187835,6.06999999,1608.4,1608.3,0.7777]
[1745109188350,6.06999999,1608.4,1608.3,5.9547]
[1745109188554,6.06999999,1608.4,1608.3,12.17244544]
[1745109189124,6.06999999,1608.4,1608.3,5.9547]
[1745109191650,6.06999999,1608.5,1608.4,6.21735886]
[1745109191855,6.06999999,1608.8,1608.5,6.99431576]
[1745109192025,12.28584205,1608.8,1608.5,0.7777]
[1745109194129,18.50194468,1608.8,1608.5,0.7777]
[1745109194421,12.28584205,1608.8,1608.5,0.7777]
[1745109197939,18.50195539,1608.8,1608.5,0.7777]
[1745109198135,6.06999999,1608.8,1608.5,6.99454121]
[1745109198765,12.28583837,1608.8,1608.5,6.99454121]
[1745109199372,6.06999999,1608.8,1608.5,6.99454121]
[1745109200271,6.06999999,1608.8,1608.5,6.99451306]
[1745109202340,6.06999999,1608.8,1608.6,6.21640599]
[1745109202542,6.06999999,1608.8,1608.7,6.21619941]
[1745109203273,6.06999999,1608.8,1608.7,7.01259941]
[1745109204984,6.06999999,1608.8,1608.7,7.84985997]
[1745109205156,6.06999999,1608.8,1608.7,15.18859941]
[1745109208151,6.06999999,1609.1,1609.0,6.21504039]
[1745109210486,6.06999999,1609.1,1608.8,6.96925378]
[1745109212294,6.06999999,1609.1,1608.9,6.21528299]
[1745109213153,6.06999999,1609.1,1608.9,12.43044852]
[1745109213354,6.06999999,1609.1,1608.9,6.21516553]
[1745109214065,4.81999999,1609.1,1609.0,6.21504039]
[1745109214386,4.81999999,1609.1,1608.9,6.21516553]
[1745109214584,4.81999999,1609.1,1608.9,12.43037015]
[1745109214763,4.81999999,1609.1,1608.9,6.21516553]
[1745109216387,4.81999999,1609.1,1609.0,6.21504039]
[1745109218291,4.81999999,1609.1,1609.0,6.96874039]
[1745109218886,4.81999999,1609.4,1609.1,6.21438898]
[1745109219059,4.81999999,1609.4,1609.1,11.38838898]
[1745109221563,11.03360425,1609.4,1609.1,5.174]
[1745109222492,11.03360425,1609.4,1609.1,11.38853404]
[1745109223992,6.21400592,1609.3,1609.1,5.174]
[1745109224409,11.03360425,1609.4,1609.1,5.174]
[1745109224862,11.03360425,1609.4,1609.1,11.38864464]
[1745109226996,6.21426795,1609.2,1609.1,5.174]
[1745109227199,7.91196792,1609.2,1609.1,5.174]
[1745109227869,1.69769997,1609.2,1609.1,5.174]
[1745109228689,1.69345267,1609.2,1609.1,5.174]
[1745109228907,7.90772062,1609.2,1609.1,5.174]
[1745109229214,6.21426795,1609.2,1609.1,5.174]
[1745109230301,6.21519498,1609.0,1608.8,0.7571]
[1745109230488,6.21595021,1608.8,1608.4,7.02251109]
[1745109230693,6.21658585,1608.6,1608.3,53.70884923]
[1745109230889,6.21658585,1608.6,1608.3,53.252]
[1745109231094,6.21711855,1608.5,1608.3,53.252]
[1745109231294,11.03711854,1608.5,1608.3,53.252]
[1745109231472,7.00765886,1608.4,1608.3,53.252]
[1745109231673,7.00765886,1608.4,1608.2,5.173]
[1745109231674,13.22529439,1608.4,1608.2,5.173]
[1745109232007,6.21777786,1608.3,1608.1,3.0]
[1745109232483,8.8121883,1608.4,1608.1,3.0]
[1745109232684,2.59482944,1608.4,1608.1,3.0]
[1745109233001,11.03720694,1608.5,1608.1,9.21831227]
[1745109233307,11.03720694,1608.5,1608.1,9.21826445]
[1745109233491,11.03720694,1608.5,1608.1,15.43652369]
[1745109233696,11.03720694,1608.5,1608.1,9.21825924]
[1745109234398,11.03720694,1608.5,1608.2,6.21806064]
[1745109234608,4.81999999,1608.5,1608.2,6.21806064]
[1745109235506,11.03705363,1608.5,1608.1,9.21825924]
[1745109235711,11.03705363,1608.5,1608.1,15.43658078]
[1745109236802,11.03705363,1608.5,1608.2,6.21813043]
[1745109237015,11.03705363,1608.5,1608.1,9.21825924]
[1745109237514,7.0076739,1608.4,1608.1,3.0]
[1745109237683,6.21788892,1608.3,1608.1,3.0]
[1745109239175,10.68597895,1608.4,1608.1,3.0]
[1745109239497,4.46860505,1608.4,1608.1,9.21824569]
[1745109239699,4.46860505,1608.4,1608.1,15.43653068]
[1745109239906,4.46860505,1608.4,1608.1,9.21824569]
[1745109240619,10.6859653,1608.4,1608.1,3.0]
[1745109240790,13.06763922,1608.4,1608.1,3.0]
[1745109241613,13.06763922,1608.4,1608.1,9.21849611]
[1745109241809,13.06763922,1608.4,1608.1,3.0]
[1745109241987,11.03786468,1608.3,1608.1,3.0]
[1745109242501,4.81999999,1608.3,1608.1,3.0]
[1745109242893,4.81999999,1608.3,1608.1,9.21848344]
[1745109243808,4.81999999,1608.3,1608.1,15.43682924]
[1745109244015,4.81999999,1608.3,1608.1,9.2183458]
[1745109244693,4.81999999,1608.3,1608.1,15.43661036]
[1745109245403,4.81999999,1608.3,1608.1,3.0]
[1745109245598,4.81999999,1608.3,1608.1,9.2183933]
[1745109245805,4.81999999,1608.3,1608.2,6.21813207]
[1745109248794,4.81999999,1608.3,1608.1,9.21830688]
[1745109249300,11.82460048,1608.3,1608.1,3.0]
[1745109249498,13.9966325,1608.3,1608.1,3.0]
[1745109253594,11.82460048,1608.3,1608.1,3.0]
[1745109253924,5.60659999,1608.3,1608.1,3.0]
[1745109256221,6.21813207,1608.2,1608.1,3.0]
[1745109256428,6.21813207,1608.2,1607.9,6.98065014]
[1745109256429,0.8269,1608.0,1607.9,5.182]
[1745109256598,0.8269,1608.0,1607.9,8.182]
[1745109256793,14.71663178,1608.2,1607.9,8.182]
[1745109257097,0.8269,1608.1,1607.9,8.182]
[1745109257843,4.81999999,1608.2,1607.9,14.40112395]
[1745109257996,4.81999999,1608.2,1608.0,7.01072736]
[1745109258826,4.81999999,1608.2,1608.0,0.792]
[1745109259126,4.81999999,1608.2,1608.0,7.01064714]
[1745109260900,4.81999999,1608.2,1608.1,6.21851874]
[1745109262049,4.81999999,1608.2,1608.1,9.21851874]
[1745109262860,4.81999999,1608.2,1608.1,10.05071874]
[1745109264049,4.81999999,1608.5,1608.2,3.0]
[1745109264224,4.81999999,1608.5,1608.4,6.21735886]
[1745109264414,4.45670505,1608.7,1608.4,6.21735886]
[1745109264415,9.27670504,1608.7,1608.4,6.21735886]
[1745109264619,5.59839999,1608.7,1608.4,6.21709447]
[1745109264819,5.59839999,1608.7,1608.5,6.21695713]
[1745109265019,4.81999999,1608.7,1608.5,6.21695713]
[1745109265469,4.81999999,1608.7,1608.5,6.21670591]
[1745109265759,4.81999999,1608.8,1608.6,6.97602384]
[1745109265919,11.03607955,1608.8,1608.4,9.2171899]
[1745109266252,6.21684297,1608.6,1608.4,3.0]
[1745109266750,6.21759834,1608.4,1608.1,8.182]
[1745109267121,6.21796781,1608.3,1608.1,8.182]
[1745109267641,6.21759834,1608.4,1608.1,8.182]
[1745109267820,15.48371711,1608.5,1608.1,14.40048032]
[1745109268021,4.81999999,1608.5,1608.2,6.97770876]
[1745109268631,4.81999999,1608.5,1608.2,6.9775328]
[1745109269160,4.81999999,1608.5,1608.2,13.19545591]
[1745109269447,4.81999999,1608.5,1608.2,13.19539541]
[1745109269647,4.81999999,1608.5,1608.3,6.21757842]
[1745109270022,4.81999999,1608.5,1608.4,9.21735886]
[1745109270245,4.81999999,1608.5,1608.4,9.97695886]
[1745109271028,4.81999999,1608.8,1608.6,6.21631047]
[1745109271632,4.81999999,1608.8,1608.6,12.43267269]
[1745109271855,4.81999999,1608.8,1608.7,6.21619941]
[1745109272149,4.81999999,1608.8,1608.6,6.21631047]
[1745109273358,4.81999999,1608.8,1608.6,12.43270583]
[1745109273521,4.81999999,1608.8,1608.6,6.21631047]
[1745109274555,4.81999999,1608.9,1608.6,6.21631047]
[1745109275933,6.21585344,1608.8,1608.6,3.0]
[1745109276846,11.03560684,1608.9,1608.6,9.21643733]
[1745109277026,11.03544679,1608.9,1608.6,9.21643733]
[1745109277222,11.03544679,1608.9,1608.6,3.0]
[1745109277427,18.79920424,1608.9,1608.6,3.0]
[1745109277828,6.2159815,1608.8,1608.6,3.0]
[1745109278455,18.79910932,1608.9,1608.6,3.0]
[1745109278633,6.21585683,1608.8,1608.6,3.0]
[1745109278960,6.98165683,1608.8,1608.6,3.0]
[1745109279457,8.93818525,1608.8,1608.5,5.194]
[1745109279760,6.21631296,1608.7,1608.5,5.194]
[1745109279960,8.93818525,1608.8,1608.5,5.194]
[1745109280461,13.75818524,1608.8,1608.5,5.194]
[1745109281325,13.75818524,1608.8,1608.5,11.41094965]
[1745109281661,13.75818524,1608.8,1608.5,5.194]
[1745109282047,6.2162373,1608.7,1608.5,5.194]
[1745109285261,12.43271577,1608.7,1608.5,5.194]
[1745109285667,6.21697233,1608.5,1608.4,5.193]
[1745109289165,21.72196794,1608.6,1608.4,5.193]
[1745109289339,15.50510201,1608.6,1608.4,5.193]
[1745109289535,4.81999999,1608.6,1608.4,5.193]
[1745109289734,4.81999999,1608.6,1608.4,12.16519585]
[1745109290736,4.81999999,1608.6,1608.4,5.948]
[1745109290937,4.81999999,1608.6,1608.4,12.1653499]
[1745109292337,4.81999999,1608.6,1608.4,5.948]
[1745109292535,6.21768715,1608.4,1608.2,3.0]
[1745109292740,4.37538377,1608.4,1608.0,54.54371606]
[1745109292939,6.21829024,1608.2,1608.0,59.2653]
[1745109293176,11.03829023,1608.2,1608.0,58.465]
[1745109293560,11.79139023,1608.2,1608.0,58.465]
[1745109293964,18.00989708,1608.2,1608.0,5.193]
[1745109294158,11.79139023,1608.2,1608.0,5.193]
[1745109298146,18.00985156,1608.2,1608.0,5.193]
[1745109298545,6.21851874,1608.1,1608.0,5.193]
[1745109299178,18.00984777,1608.2,1608.0,5.193]
[1745109299355,11.79139023,1608.2,1608.0,5.193]
[1745109300258,6.21851874,1608.1,1608.0,5.193]
[1745109301460,11.79139023,1608.2,1608.0,5.193]
[1745109302045,6.21851874,1608.1,1608.0,5.193]
[1745109303281,11.03851873,1608.1,1607.7,9.21984449]
[1745109303479,6.21940036,1607.9,1607.7,5.225]
[1745109304453,6.21967906,1607.8,1607.7,5.225]
[1745109304651,4.81999999,1607.8,1607.7,5.225]
[1745109305145,11.03967905,1607.8,1607.7,5.225]
[1745109305378,6.22028711,1607.7,1607.4,3.7795]
[1745109305578,6.22028711,1607.7,1607.5,8.225]
[1745109306550,11.85447905,1607.8,1607.5,8.225]
[1745109307164,11.85447905,1607.8,1607.5,14.44580367]
[1745109307362,5.63479999,1607.8,1607.5,14.44570318]
[1745109307788,4.81999999,1607.8,1607.5,14.44570318]
[1745109308674,4.81999999,1607.8,1607.5,14.44566633]
[1745109308875,4.81999999,1607.8,1607.5,20.66633266]
[1745109309184,4.81999999,1607.8,1607.5,14.44566633]
[1745109309980,4.81999999,1607.8,1607.7,0.7855]
[1745109310157,4.81999999,1607.8,1607.7,7.00556593]
[1745109310971,4.81999999,1607.8,1607.7,7.06776012]
[1745109311658,4.81999999,1607.8,1607.7,7.00556593]
[1745109315678,4.81999999,1608.1,1607.8,9.2194]
[1745109315880,4.81999999,1608.1,1607.8,14.4454]
[1745109316276,4.81999999,1608.1,1607.8,20.6648]
[1745109316461,4.81999999,1608.1,1607.8,14.4454]
[1745109317092,4.81999999,1608.1,1607.8,20.66482394]
[1745109317893,4.81999999,1608.1,1607.9,6.21913851]
[1745109318458,4.81999999,1608.1,1607.9,12.43812818]
[1745109318665,4.81999999,1608.1,1607.9,6.21906409]
[1745109318890,4.81999999,1608.1,1607.9,12.43811366]
[1745109319065,4.81999999,1608.1,1607.9,6.21904957]
[1745109319467,4.81999999,1608.1,1607.8,14.445471]
[1745109320199,4.81999999,1608.1,1607.8,17.664942]
[1745109321475,4.81999999,1608.1,1607.9,6.21908415]
[1745109322568,4.81999999,1608.1,1608.0,6.21890547]
[1745109323473,5.63479999,1608.3,1608.0,7.00520547]
[1745109323672,4.81999999,1608.3,1608.2,6.21813207]
[1745109323889,4.81999999,1608.5,1608.3,6.2176238]
[1745109324285,4.81999999,1608.6,1608.3,6.21751452]
[1745109324467,4.81999999,1608.6,1608.5,10.00327233]
[1745109327402,4.81999999,1608.9,1608.6,6.21634231]
[1745109327575,4.81999999,1608.9,1608.6,11.44134231]
[1745109328298,4.81999999,1608.9,1608.7,6.21597665]
[1745109328667,4.81999999,1608.9,1608.6,17.65773862]
[1745109329303,4.81999999,1608.9,1608.7,6.21616154]
[1745109329605,4.81999999,1608.9,1608.6,11.44134231]
[1745109329901,11.03552109,1608.9,1608.6,5.225]
[1745109330999,4.81999999,1608.9,1608.6,11.44151158]
[1745109332605,4.81999999,1608.9,1608.6,17.65789911]
[1745109332805,4.81999999,1608.9,1608.6,11.44138753]
[1745109333004,11.03542833,1608.9,1608.6,11.44138753]
[1745109333227,6.21599008,1608.8,1608.6,5.225]
[1745109333401,6.21599008,1608.8,1608.6,8.225]
[1745109333402,0.8078,1608.7,1608.6,8.225]
[1745109333601,6.21599008,1608.8,1608.6,5.225]
[1745109333602,7.02379008,1608.8,1608.6,5.225]
[1745109334302,9.19756424,1608.8,1608.6,5.225]
[1745109334600,9.19756424,1608.8,1608.5,3.0]
[1745109334808,9.19756424,1608.8,1608.6,5.214]
[1745109335011,9.19756424,1608.8,1608.5,8.1148003]
[1745109335486,6.21634488,1608.7,1608.5,8.1148003]
[1745109335683,15.41364629,1608.8,1608.5,8.1148003]
[1745109336007,1.54136463,1608.7,1608.5,8.1148003]
[1745109336792,1.54136463,1608.7,1608.5,14.33173977]
[1745109336994,1.54136463,1608.7,1608.5,8.1148003]
[1745109338619,7.02379008,1608.8,1608.5,14.33168984]
[1745109339009,5.62779999,1608.8,1608.5,14.33160668]
[1745109340035,11.84367595,1608.8,1608.5,14.33160668]
[1745109341220,5.62779999,1608.8,1608.5,20.54834154]
[1745109341521,4.81999999,1608.8,1608.6,6.21658054]
[1745109341726,5.66983049,1608.8,1608.6,6.21658054]
[1745109342421,5.66983049,1608.8,1608.6,6.2165835]
[1745109342625,5.66983049,1608.8,1608.5,20.54825661]
[1745109343229,5.66983049,1608.8,1608.6,6.21650176]
[1745109345025,5.66983049,1608.8,1608.5,20.5482432]
[1745109345921,4.81999999,1608.8,1608.5,20.5482432]
[1745109346113,4.81999999,1608.8,1608.6,6.21648603]
[1745109346421,4.81999999,1608.8,1608.6,6.21635355]
[1745109346627,4.81999999,1608.8,1608.6,6.21634034]
[1745109346798,4.81999999,1608.8,1608.5,20.54825234]
[1745109347297,4.81999999,1608.8,1608.6,6.21654211]
[1745109347499,4.81999999,1608.8,1608.6,6.2164992]
[1745109347700,4.81999999,1608.8,1608.5,17.64749169]
[1745109347701,6.29139009,1608.8,1608.5,17.64749169]
[1745109347897,6.29139009,1608.8,1608.6,6.21656828]
[1745109348629,6.29139009,1608.8,1608.6,11.42956828]
[1745109348829,4.81999999,1608.8,1608.6,11.42956828]
[1745109349005,4.81999999,1608.8,1608.6,17.64590811]
[1745109349520,4.81999999,1608.8,1608.6,11.42933983]
[1745109350236,4.81999999,1609.0,1608.9,6.21542668]
[1745109350402,4.81999999,1609.0,1608.9,7.00482668]
[1745109353733,4.81999999,1609.2,1608.9,7.00482668]
[1745109353917,4.81999999,1609.2,1609.0,5.213]
[1745109354102,11.03426998,1609.2,1609.0,5.213]
[1745109355306,19.41888064,1609.2,1609.0,5.213]
[1745109355818,13.20431734,1609.2,1609.0,5.213]
[1745109356524,6.99004735,1609.2,1609.0,5.9969]
[1745109356727,4.81999999,1609.2,1609.0,12.2119385]
[1745109357124,4.81999999,1609.2,1609.0,11.4280385]
[1745109357331,4.81999999,1609.2,1609.0,5.213]
[1745109360758,11.03430247,1609.2,1609.0,5.213]
[1745109361223,4.81999999,1609.2,1609.0,5.213]
[1745109362448,11.03428984,1609.2,1609.0,5.213]
[1745109364129,11.03428984,1609.2,1608.9,5.184]
[1745109364130,6.21480367,1609.1,1608.9,5.184]
[1745109364337,0.7668,1609.0,1608.9,5.184]
[1745109365553,4.81999999,1609.0,1608.9,11.39942668]
[1745109365942,4.81999999,1609.0,1608.9,14.39942668]
[1745109371460,6.98090981,1609.3,1608.9,14.39942668]
[1745109371461,4.81999999,1609.2,1609.0,6.21495612]
[1745109374363,4.81999999,1609.2,1608.9,14.39917215]
[1745109374577,6.00009097,1609.2,1608.9,14.39917215]
[1745109375188,12.21437727,1609.2,1608.9,14.39917215]
[1745109375733,6.00009097,1609.2,1608.9,14.39917215]
[1745109375940,6.00009097,1609.2,1608.9,20.6143424]
[1745109376271,6.00009097,1609.2,1609.0,6.21502943]
[1745109376570,7.63488604,1609.1,1608.9,8.184]
[1745109377146,12.45488603,1609.1,1608.9,8.184]
[1745109377350,6.24010909,1609.1,1608.9,8.184]
[1745109379675,12.45490708,1609.1,1608.9,8.184]
[1745109379844,5.42000909,1609.1,1608.9,14.39917011]
[1745109380170,4.81999999,1609.1,1608.9,20.61434152]
[1745109381480,4.81999999,1609.1,1608.9,20.61433674]
[1745109382474,4.81999999,1609.1,1608.9,14.39916663]
[1745109383769,4.81999999,1609.1,1608.9,20.61441676]
[1745109384139,4.81999999,1609.1,1608.9,14.39916663]
[1745109387179,4.81999999,1609.1,1608.9,20.61434975]
[1745109388378,4.81999999,1609.1,1608.9,14.39916663]
[1745109388780,4.81999999,1609.1,1608.9,20.61435148]
[1745109389080,4.81999999,1609.1,1608.9,14.39916663]
[1745109389455,4.81999999,1609.1,1608.9,20.61434632]
[1745109390581,4.81999999,1609.1,1609.0,6.21504039]
[1745109390777,4.81999999,1609.1,1609.0,7.00794039]
[1745109394088,4.81999999,1609.1,1609.0,6.21504039]
[1745109394875,4.81999999,1609.2,1609.0,6.21504039]
[1745109396781,4.81999999,1609.2,1609.1,6.21465415]
[1745109397789,4.81999999,1609.2,1609.1,7.02435415]
[1745109397954,4.81999999,1609.2,1609.1,0.8097]
[1745109398159,4.81999999,1609.2,1609.0,7.02450361]
[1745109398677,4.81999999,1609.2,1609.0,0.8097]
[1745109399278,4.81999999,1609.2,1609.0,7.02461789]
[1745109400008,4.81999999,1609.2,1609.0,0.8097]
[1745109400211,4.81999999,1609.2,1609.0,7.024682]
[1745109400713,11.03412254,1609.3,1609.0,0.8097]
[1745109400865,12.92866899,1609.3,1609.0,0.8097]
[1745109402197,12.92866899,1609.3,1609.0,7.02472796]
[1745109402662,12.92866899,1609.3,1609.1,5.175]
[1745109404698,6.71454644,1609.3,1609.1,5.175]
[1745109404875,12.92856618,1609.3,1609.1,5.175]
[1745109405075,4.81999999,1609.3,1609.1,5.175]
[1745109405597,6.51761454,1609.4,1609.1,5.175]
[1745109405812,0.7629,1609.3,1609.1,5.175]
[1745109406795,6.21426795,1609.2,1609.1,5.175]
[1745109407798,6.9771305,1609.3,1609.1,5.175]
[1745109411171,6.21291374,1609.6,1609.2,10.04356347]
[1745109411376,6.21291374,1609.6,1609.3,6.21375759]
[1745109411377,6.21287663,1609.6,1609.3,6.21375759]
[1745109411777,11.79537662,1609.7,1609.3,6.21375759]
[1745109412496,6.21274433,1609.6,1609.3,6.21375759]
[1745109413307,7.91035888,1609.6,1609.3,6.21375759]
[1745109416506,7.91035888,1609.6,1609.2,7.50651966]
[1745109416713,7.91035888,1609.6,1609.2,13.72053357]
[1745109417013,7.91035888,1609.6,1609.3,6.2138288]
[1745109417794,1.69761455,1609.6,1609.3,6.21367282]
[1745109417994,1.69761455,1609.6,1609.3,12.42730184]
[1745109418195,1.69761455,1609.6,1609.3,6.21362301]
[1745109418396,1.69761455,1609.6,1609.4,6.21347748]
[1745109418714,1.69761455,1609.6,1609.3,6.21362301]
[1745109420719,1.69761455,1609.6,1609.4,6.21344043]
[1745109421016,1.69761455,1609.6,1609.3,12.42728476]
[1745109421582,1.69761455,1609.6,1609.3,6.21362301]
[1745109421788,1.69761455,1609.6,1609.4,6.21345266]
[1745109422396,1.69761455,1609.6,1609.3,6.21362301]
[1745109422785,1.69761455,1609.6,1609.3,12.42724599]
[1745109424212,1.69761455,1609.6,1609.2,10.50642086]
[1745109424517,1.69761455,1609.6,1609.2,16.72043507]
[1745109424518,7.91051372,1609.6,1609.2,16.72043507]
[1745109424717,7.91051372,1609.6,1609.3,6.21380791]
[1745109428218,7.91051372,1609.6,1609.4,5.173]
[1745109428895,17.24507629,1609.7,1609.4,5.173]
[1745109429085,12.73009117,1609.7,1609.4,5.173]
[1745109429489,6.21274307,1609.6,1609.4,5.173]
[1745109430421,7.01504307,1609.6,1609.4,5.173]
[1745109433321,8.98955687,1609.6,1609.4,5.173]
[1745109433520,7.91072421,1609.5,1609.4,5.173]
[1745109433690,8.71302421,1609.5,1609.4,5.173]
[1745109433893,0.8023,1609.4,1609.1,5.173]
[1745109434124,7.01682242,1609.2,1609.1,5.173]
[1745109434322,13.32965429,1609.2,1609.1,5.173]
[1745109435306,0.8023,1609.0,1608.9,53.245]
[1745109435624,14.93028559,1609.0,1608.8,5.173]
[1745109436819,6.21542668,1608.9,1608.8,5.173]
[1745109436993,12.52846483,1608.9,1608.8,5.173]
[1745109437197,6.21589874,1608.8,1608.4,6.21718023]
[1745109437500,6.21589874,1608.8,1608.5,5.174]
[1745109437501,1.69761455,1608.7,1608.5,5.174]
[1745109438027,1.69761455,1608.7,1608.5,11.39065463]
[1745109438355,4.81999999,1608.8,1608.5,11.39065463]
[1745109441132,4.81999999,1608.8,1608.5,17.60740289]
[1745109441331,4.81999999,1608.8,1608.7,6.21619941]
[1745109441839,6.51761454,1609.0,1608.7,6.21619941]
[1745109442533,13.56071385,1609.0,1608.6,6.9984167]
[1745109443237,11.8630993,1609.0,1608.6,6.9984167]
[1745109443533,1.18630993,1608.9,1608.7,6.21610229]
[1745109443731,5.64799999,1609.0,1608.7,6.21607536]
[1745109444031,5.64799999,1609.0,1608.8,6.21576375]
[1745109444237,4.81999999,1609.0,1608.8,6.21576375]
[1745109444533,4.81999999,1609.0,1608.9,14.39042668]
[1745109444833,4.81999999,1609.2,1609.0,6.99676601]
[1745109445036,6.04141514,1609.2,1609.0,6.99676601]
[1745109445202,4.81999999,1609.2,1609.0,6.99676601]
[1745109446107,5.64799999,1609.4,1609.1,6.21465415]
[1745109446419,5.64799999,1609.4,1609.2,6.2142285]
[1745109446618,4.81999999,1609.4,1609.2,6.2142513]
[1745109449534,4.81999999,1609.4,1609.2,12.42834225]
[1745109450947,4.81999999,1609.4,1609.2,6.21401104]
[1745109451151,4.81999999,1609.4,1609.3,6.21388181]
[1745109451447,4.81999999,1609.4,1609.3,9.21388181]
[1745109452148,4.81999999,1609.4,1609.3,3.0]
[1745109453216,4.81999999,1609.4,1609.2,3.0]
[1745109454752,4.81999999,1609.4,1609.2,9.2141985]
[1745109462255,6.29125031,1609.4,1609.2,9.2141985]
[1745109463255,4.81999999,1609.4,1609.2,9.2141985]
[1745109465056,4.81999999,1609.4,1609.2,14.3881985]
[1745109465353,7.03478181,1609.3,1609.2,8.174]
[1745109465521,7.03478181,1609.3,1609.2,5.174]
[1745109466257,7.03478181,1609.3,1608.9,6.21530524]
[1745109466258,6.21471833,1609.1,1608.9,5.174]
[1745109466427,8.66891065,1609.1,1608.9,5.174]
[1745109467258,11.79171832,1609.1,1608.9,5.174]
[1745109467455,11.79171832,1609.1,1608.9,3.0]
[1745109473369,5.57699999,1609.1,1608.9,3.0]
[1745109473673,4.81999999,1609.1,1609.0,6.21504039]
[1745109475185,4.81999999,1609.1,1608.9,9.21525225]
[1745109475468,4.81999999,1609.1,1608.9,3.0]
[1745109475773,5.57819999,1609.1,1608.9,3.0]
[1745109477253,11.79304624,1609.1,1608.9,3.0]
[1745109477873,5.57819999,1609.1,1608.9,3.0]
[1745109482574,5.57819999,1609.1,1608.9,9.21540615]
[1745109484175,5.57819999,1609.1,1608.9,3.0]
[1745109484550,4.81999999,1609.1,1608.9,3.0]
[1745109486677,4.81999999,1609.1,1608.9,9.2153607]
[1745109489084,4.81999999,1609.1,1608.9,15.43041928]
[1745109489254,4.81999999,1609.1,1608.9,9.21520964]
[1745109489761,4.81999999,1609.1,1608.9,3.0]
[1745109490788,11.03470546,1609.1,1608.9,3.0]
[1745109490993,4.81999999,1609.1,1608.9,3.0]
[1745109492911,4.81999999,1609.1,1608.9,9.21538433]
[1745109495201,4.81999999,1609.1,1608.9,3.0]
[1745109497370,4.81999999,1609.1,1608.9,9.21538127]
[1745109502107,4.81999999,1609.1,1608.9,15.43055579]
[1745109502330,4.81999999,1609.1,1608.9,9.21517452]
[1745109506213,0.7755,1609.3,1609.1,6.21441892]
[1745109506414,4.81999999,1609.4,1609.1,6.99841691]
[1745109506595,4.81999999,1609.4,1609.1,13.21284075]
[1745109506796,4.81999999,1609.4,1609.2,11.38822392]
[1745109507006,4.81999999,1609.4,1609.2,11.38803052]
[1745109507207,4.81999999,1609.4,1609.2,17.66418457]
[1745109507391,4.81999999,1609.4,1609.2,17.60204508]
[1745109507597,4.81999999,1609.4,1609.2,17.60203402]
[1745109508089,4.81999999,1609.4,1609.2,11.38801456]
[1745109508313,4.81999999,1609.4,1609.2,11.38821469]
[1745109508528,4.81999999,1609.4,1609.2,5.174]
[1745109511099,4.81999999,1609.4,1609.2,11.38821937]
[1745109512218,4.81999999,1609.4,1609.2,5.174]
[1745109515238,1.69758487,1609.3,1609.2,5.174]
[1745109515397,8.56322517,1609.3,1609.2,5.174]
[1745109515602,6.21426795,1609.2,1609.1,0.784]